[Event "Irish Championship 2026"]
[Site "Talbot Hotel Stillorgan, Co.Dublin, IE"]
[Date "2026.08.03"]
[Round "3"]
[White "Biswal, Saiansh"]
[Black "Landmark, Gabriel"]
[Result "0-1"]
[Board "78"]
[TimeControl "40/5400+30:1800+30"]
[WhiteFideId "2518155"]
[BlackFideId "2524848"]
[WhiteElo "1824"]
[BlackElo "1999"]
[WhiteClock "0:02:06"]
[BlackClock "1:14:09"]
[Variant "Standard"]
[EndDate "2026.08.03"]
[EndTime "16:33:14"]

1. e4 {[%clk 1:30:58]}  e5 {[%clk 1:29:49]} 2. Nf3 {[%clk 1:31:06]}  Nc6 {[%clk 1:30:15]} 3. Bc4 {[%clk 1:31:25]}  Bc5 {[%clk 1:30:20]}
4. c3 {[%clk 1:31:47]}  Nf6 {[%clk 1:30:24]} 5. d4 {[%clk 1:31:55]}  exd4 {[%clk 1:30:12]} 6. b4 {[%clk 1:32:02]}  Bb6 {[%clk 1:29:09]}
7. e5 {[%clk 1:32:20]}  Ne4 {[%clk 1:29:03]} 8. Bd5 {[%clk 1:32:34]}  Nxc3 {[%clk 1:28:58]} 9. Nxc3 {[%clk 1:32:57]}  dxc3 {[%clk 1:29:24]}
10. O-O {[%clk 1:33:18]}  O-O {[%clk 1:28:49]} 11. Bg5 {[%clk 1:32:49]}  Qe8 {[%clk 1:27:59]} 12. Re1 {[%clk 1:32:42]}  Nxb4 {[%clk 1:27:18]}
13. Bc4 {[%clk 1:21:52]}  d5 {[%clk 1:27:00]} 14. exd6 {[%clk 1:13:54]}  Be6 {[%clk 1:27:15]} 15. Qb3 {[%clk 0:59:37]}  Nc6 {[%clk 1:13:29]}
16. Bxe6 {[%clk 0:06:33]}  fxe6 {[%clk 1:13:52]} 17. Rxe6 {[%clk 0:02:14]}  Qf7 {[%clk 1:13:58]} 18. Rae1 {[%clk 0:02:00]}  Nd4 {[%clk 1:14:09]}
19. Nxd4 {[%clk 0:02:06]}  Qxf2+ {[%clk 1:30:30]} 0-1

[Event "Irish Championship 2026"]
[Site "Talbot Hotel Stillorgan, Co.Dublin, IE"]
[Date "2026.08.03"]
[Round "3"]
[White "O'Connell, Gerard"]
[Black "Rai, Oleksii"]
[Result "1/2-1/2"]
[Board "79"]
[TimeControl "40/5400+30:1800+30"]
[WhiteFideId "2500493"]
[BlackFideId "2531526"]
[WhiteElo "1996"]
[BlackElo "1840"]
[WhiteClock "0:25:06"]
[BlackClock "0:45:36"]
[Variant "Standard"]
[EndDate "2026.08.03"]
[EndTime "17:58:31"]

1. d4 {[%clk 1:30:57]}  d5 {[%clk 1:30:55]} 2. c4 {[%clk 1:31:19]}  e6 {[%clk 1:31:19]} 3. Nc3 {[%clk 1:31:42]}  Nf6 {[%clk 1:31:27]}
4. Nf3 {[%clk 1:32:02]}  Be7 {[%clk 1:31:44]} 5. Bg5 {[%clk 1:32:23]}  h6 {[%clk 1:31:45]} 6. Bh4 {[%clk 1:32:41]}  O-O {[%clk 1:31:42]}
7. e3 {[%clk 1:33:02]}  b6 {[%clk 1:31:31]} 8. Rc1 {[%clk 1:33:13]}  Bb7 {[%clk 1:30:54]} 9. cxd5 {[%clk 1:33:23]}  Nxd5 {[%clk 1:30:39]}
10. Nxd5 {[%clk 1:31:09]}  Bxd5 {[%clk 1:30:07]} 11. Bxe7 {[%clk 1:31:00]}  Qxe7 {[%clk 1:30:27]} 12. Qc2 {[%clk 1:28:29]}  Rc8 {[%clk 1:23:51]}
13. e4 {[%clk 1:18:55]}  Bb7 {[%clk 1:23:50]} 14. Bd3 {[%clk 1:18:55]}  c5 {[%clk 1:23:11]} 15. O-O {[%clk 1:19:05]}  Nd7 {[%clk 1:19:28]}
16. Qa4 {[%clk 1:09:59]}  a6 {[%clk 1:17:51]} 17. Qa3 {[%clk 1:08:36]}  Qf6 {[%clk 1:16:25]} 18. Bb1 {[%clk 1:04:01]}  Qf4 {[%clk 1:01:27]}
19. Qe3 {[%clk 0:59:34]}  Qxe3 {[%clk 1:00:47]} 20. fxe3 {[%clk 0:59:58]}  c4 {[%clk 0:56:42]} 21. Nd2 {[%clk 0:58:49]}  b5 {[%clk 0:56:59]}
22. e5 {[%clk 0:58:35]}  Nb6 {[%clk 0:56:31]} 23. Ne4 {[%clk 0:51:27]}  Bxe4 {[%clk 0:56:43]} 24. Bxe4 {[%clk 0:51:51]}  Ra7 {[%clk 0:56:38]}
25. a3 {[%clk 0:50:51]}  Rac7 {[%clk 0:51:23]} 26. Rf2 {[%clk 0:45:43]}  a5 {[%clk 0:50:09]} 27. Kf1 {[%clk 0:37:39]}  b4 {[%clk 0:43:29]}
28. axb4 {[%clk 0:33:43]}  axb4 {[%clk 0:43:52]} 29. Ke1 {[%clk 0:32:32]}  c3 {[%clk 0:41:13]} 30. b3 {[%clk 0:30:01]}  Ra7 {[%clk 0:40:35]}
31. Ke2 {[%clk 0:24:30]}  Ra3 {[%clk 0:38:59]} 32. Bc2 {[%clk 0:24:53]}  Nd5 {[%clk 0:33:58]} 33. Kd3 {[%clk 0:24:58]}  Ra7 {[%clk 0:29:31]}
34. Rcf1 {[%clk 0:18:28]}  Nb6 {[%clk 0:26:31]} 35. g3 {[%clk 0:16:14]}  g6 {[%clk 0:26:43]} 36. Rb1 {[%clk 0:12:38]}  Kg7 {[%clk 0:25:46]}
37. Rbf1 {[%clk 0:12:48]}  Rcc7 {[%clk 0:25:52]} 38. Rb1 {[%clk 0:13:01]}  Ra5 {[%clk 0:26:00]} 39. Rff1 {[%clk 0:11:01]}  Rca7 {[%clk 0:25:49]}
40. Rf2 {[%clk 0:10:54]}  Ra2 {[%clk 0:25:29]} 41. Rbf1 {[%clk 0:09:53]}  Kf8 {[%clk 0:19:58]} 42. Rb1 {[%clk 0:08:08]}  Ra1 {[%clk 0:20:01]}
43. Rff1 {[%clk 0:08:18]}  Rxb1 {[%clk 0:20:22]} 44. Rxb1 {[%clk 0:08:35]}  Ke7 {[%clk 0:20:33]} 45. Rf1 {[%clk 0:08:30]}  h5 {[%clk 0:20:46]}
46. Rg1 {[%clk 0:02:49]}  Ra2 {[%clk 0:21:04]} 47. Rb1 {[%clk 0:02:46]}  Nd5 {[%clk 0:21:02]} 48. Rc1 {[%clk 0:02:57]}  Ke8 {[%clk 0:17:23]}
49. e4 {[%clk 0:02:39]}  Nb6 {[%clk 0:17:43]} 50. Rf1 {[%clk 0:01:45]}  Ke7 {[%clk 0:18:04]} 51. Rc1 {[%clk 0:01:58]}  Ra5 {[%clk 0:18:12]}
52. Rf1 {[%clk 0:02:14]}  Ra7 {[%clk 0:16:44]} 53. Rd1 {[%clk 0:02:14]}  Ra8 {[%clk 0:15:45]} 54. Rf1 {[%clk 0:02:08]}  Ra7 {[%clk 0:15:23]}
55. Rd1 {[%clk 0:02:28]}  Kf8 {[%clk 0:15:46]} 56. Rf1 {[%clk 0:02:35]}  Kg7 {[%clk 0:16:10]} 57. Ke3 {[%clk 0:01:37]}  Kh6 {[%clk 0:16:02]}
58. h4 {[%clk 0:26:24]}  Kg7 {[%clk 0:46:10]} 59. Rd1 {[%clk 0:25:02]}  Ra2 {[%clk 0:45:36]} 60. Kd3 {[%clk 0:25:06]}  Ra5 {[%clk 0:40:01]} 1/2-1/2

[Event "Irish Championship 2026"]
[Site "Talbot Hotel Stillorgan, Co.Dublin, IE"]
[Date "2026.08.03"]
[Round "3"]
[White "Braine, Harry"]
[Black "Dash, Shaurya"]
[Result "0-1"]
[Board "80"]
[TimeControl "40/5400+30:1800+30"]
[WhiteFideId "2518570"]
[BlackFideId "2534789"]
[WhiteElo "1948"]
[BlackElo "1751"]
[WhiteClock "0:00:56"]
[BlackClock "0:01:40"]
[Variant "Standard"]
[EndDate "2026.08.03"]
[EndTime "17:35:07"]

1. e4 {[%clk 1:30:53]}  c5 {[%clk 1:30:53]} 2. Nf3 {[%clk 1:31:17]}  d6 {[%clk 1:31:17]} 3. d4 {[%clk 1:31:41]}  cxd4 {[%clk 1:31:39]}
4. Nxd4 {[%clk 1:32:03]}  Nf6 {[%clk 1:32:04]} 5. Nc3 {[%clk 1:32:19]}  a6 {[%clk 1:32:29]} 6. Bg5 {[%clk 1:32:43]}  e6 {[%clk 1:24:00]}
7. Qe2 {[%clk 1:32:44]}  Be7 {[%clk 1:19:25]} 8. h4 {[%clk 1:32:46]}  b5 {[%clk 1:18:13]} 9. a3 {[%clk 1:28:32]}  Bb7 {[%clk 1:12:47]}
10. O-O-O {[%clk 1:25:06]}  Nbd7 {[%clk 1:06:55]} 11. f4 {[%clk 1:09:28]}  Rc8 {[%clk 0:58:52]} 12. Rh3 {[%clk 0:52:59]}  h5 {[%clk 0:46:44]}
13. Kb1 {[%clk 0:45:54]}  Ng4 {[%clk 0:41:15]} 14. Bxe7 {[%clk 0:35:44]}  Qxe7 {[%clk 0:41:35]} 15. Nb3 {[%clk 0:21:32]}  Ndf6 {[%clk 0:22:42]}
16. Rhd3 {[%clk 0:17:05]}  Rxc3 {[%clk 0:19:45]} 17. Rxc3 {[%clk 0:14:38]}  Nxe4 {[%clk 0:20:04]} 18. Rcd3 {[%clk 0:12:30]}  Nef2 {[%clk 0:13:21]}
19. Rxd6 {[%clk 0:12:19]}  Nxd1 {[%clk 0:13:42]} 20. Rxd1 {[%clk 0:12:33]}  Qxh4 {[%clk 0:12:01]} 21. Nc5 {[%clk 0:11:37]}  Bc8 {[%clk 0:09:55]}
22. Qf3 {[%clk 0:08:56]}  O-O {[%clk 0:09:25]} 23. g3 {[%clk 0:07:38]}  Qe7 {[%clk 0:08:11]} 24. b4 {[%clk 0:07:57]}  Rd8 {[%clk 0:07:56]}
25. Bd3 {[%clk 0:08:06]}  g6 {[%clk 0:06:21]} 26. Re1 {[%clk 0:07:04]}  Qf6 {[%clk 0:05:13]} 27. Ne4 {[%clk 0:06:04]}  Qd4 {[%clk 0:04:43]}
28. Ng5 {[%clk 0:02:47]}  Qc3 {[%clk 0:03:24]} 29. Re4 {[%clk 0:01:15]}  Bb7 {[%clk 0:03:04]} 30. Nxe6 {[%clk 0:00:42]}  Bxe4 {[%clk 0:01:56]}
31. Qxe4 {[%clk 0:01:10]}  Re8 {[%clk 0:01:50]} 32. Qd4 {[%clk 0:00:37]}  Qe1+ {[%clk 0:01:51]} 33. Kb2 {[%clk 0:00:59]}  Qxe6 {[%clk 0:02:09]}
34. Qa7 {[%clk 0:00:56]}  Nf6 {[%clk 0:01:40]} 0-1

[Event "Irish Championship 2026"]
[Site "Talbot Hotel Stillorgan, Co.Dublin, IE"]
[Date "2026.08.03"]
[Round "3"]
[White "Greenan, Darragh"]
[Black "Thomas Boby, Aiden"]
[Result "1/2-1/2"]
[Board "82"]
[TimeControl "40/5400+30:1800+30"]
[WhiteFideId "2525607"]
[BlackFideId "2535688"]
[WhiteElo "1786"]
[BlackElo "1978"]
[WhiteClock "0:24:31"]
[BlackClock "0:36:34"]
[Variant "Standard"]
[EndDate "2026.08.03"]
[EndTime "16:26:55"]

1. d4 {[%clk 1:30:54]}  Nf6 {[%clk 1:30:53]} 2. c4 {[%clk 1:31:19]}  e6 {[%clk 1:31:20]} 3. Nf3 {[%clk 1:31:41]}  Bb4+ {[%clk 1:31:44]}
4. Bd2 {[%clk 1:31:24]}  Qe7 {[%clk 1:31:40]} 5. a3 {[%clk 1:23:37]}  Bxd2+ {[%clk 1:29:54]} 6. Nbxd2 {[%clk 1:23:02]}  d6 {[%clk 1:29:00]}
7. e4 {[%clk 1:18:03]}  e5 {[%clk 1:25:32]} 8. d5 {[%clk 1:15:53]}  a5 {[%clk 1:23:06]} 9. b4 {[%clk 1:09:22]}  O-O {[%clk 1:18:07]}
10. Bd3 {[%clk 1:07:31]}  Bd7 {[%clk 1:12:37]} 11. O-O {[%clk 1:04:17]}  c6 {[%clk 1:09:58]} 12. Qb1 {[%clk 1:00:22]}  Bg4 {[%clk 1:00:05]}
13. bxa5 {[%clk 0:53:08]}  Na6 {[%clk 0:53:30]} 14. Qb6 {[%clk 0:43:17]}  Nc5 {[%clk 0:53:13]} 15. Bc2 {[%clk 0:42:30]}  Bxf3 {[%clk 0:50:21]}
16. Nxf3 {[%clk 0:39:52]}  Ra6 {[%clk 0:50:21]} 17. Qb1 {[%clk 0:38:06]}  cxd5 {[%clk 0:49:58]} 18. cxd5 {[%clk 0:36:01]}  Rxa5 {[%clk 0:50:09]}
19. Nd2 {[%clk 0:34:51]}  Nfd7 {[%clk 0:43:12]} 20. Nc4 {[%clk 0:30:44]}  Raa8 {[%clk 0:42:13]} 21. a4 {[%clk 0:28:52]}  h6 {[%clk 0:41:52]}
22. a5 {[%clk 0:27:59]}  Rfc8 {[%clk 0:41:47]} 23. Ba4 {[%clk 0:24:27]}  Rab8 {[%clk 0:36:34]} 24. Bxd7 {[%clk 0:24:31]}  Nxd7 {[%clk 0:35:13]} 1/2-1/2

[Event "Irish Championship 2026"]
[Site "Talbot Hotel Stillorgan, Co.Dublin, IE"]
[Date "2026.08.03"]
[Round "3"]
[White "Liu, Murray"]
[Black "Lorigan, Maxim"]
[Result "1/2-1/2"]
[Board "83"]
[TimeControl "40/5400+30:1800+30"]
[WhiteFideId "2517191"]
[BlackFideId "2518198"]
[WhiteElo "1885"]
[BlackElo "1762"]
[WhiteClock "0:18:39"]
[BlackClock "0:29:20"]
[Variant "Standard"]
[EndDate "2026.08.03"]
[EndTime "16:50:45"]

1. e4 {[%clk 1:30:55]}  Nf6 {[%clk 1:30:30]} 2. e5 {[%clk 1:31:09]}  Nd5 {[%clk 1:30:57]} 3. d4 {[%clk 1:31:25]}  d6 {[%clk 1:31:24]}
4. c4 {[%clk 1:31:44]}  Nb6 {[%clk 1:31:52]} 5. exd6 {[%clk 1:31:54]}  exd6 {[%clk 1:32:01]} 6. Nc3 {[%clk 1:31:49]}  Nc6 {[%clk 1:32:16]}
7. h3 {[%clk 1:23:26]}  Bf5 {[%clk 1:31:58]} 8. a3 {[%clk 1:11:48]}  Be7 {[%clk 1:30:02]} 9. Nf3 {[%clk 1:11:52]}  O-O {[%clk 1:29:43]}
10. Be2 {[%clk 1:11:53]}  Re8 {[%clk 1:28:40]} 11. O-O {[%clk 1:12:00]}  Bf6 {[%clk 1:26:38]} 12. Bf4 {[%clk 1:09:16]}  h6 {[%clk 1:23:53]}
13. Qd2 {[%clk 1:04:10]}  Na5 {[%clk 1:16:09]} 14. Qd1 {[%clk 0:57:29]}  Naxc4 {[%clk 1:11:48]} 15. Bxc4 {[%clk 0:56:34]}  Nxc4 {[%clk 1:11:52]}
16. Qb3 {[%clk 0:54:43]}  Nb6 {[%clk 1:10:53]} 17. Rac1 {[%clk 0:54:01]}  c6 {[%clk 1:09:16]} 18. a4 {[%clk 0:50:19]}  Be6 {[%clk 1:01:56]}
19. Qc2 {[%clk 0:49:58]}  Nd5 {[%clk 1:00:49]} 20. Bg3 {[%clk 0:46:58]}  Nxc3 {[%clk 0:53:27]} 21. bxc3 {[%clk 0:46:01]}  Bc4 {[%clk 0:51:14]}
22. Rfe1 {[%clk 0:45:31]}  Qd7 {[%clk 0:50:37]} 23. Nd2 {[%clk 0:42:46]}  Rxe1+ {[%clk 0:45:08]} 24. Rxe1 {[%clk 0:43:00]}  Be6 {[%clk 0:45:14]}
25. Ne4 {[%clk 0:41:38]}  Be7 {[%clk 0:45:18]} 26. c4 {[%clk 0:32:10]}  d5 {[%clk 0:40:08]} 27. cxd5 {[%clk 0:30:55]}  Qxd5 {[%clk 0:39:15]}
28. Nc5 {[%clk 0:25:51]}  Bxc5 {[%clk 0:35:36]} 29. dxc5 {[%clk 0:22:28]}  Rd8 {[%clk 0:34:11]} 30. Bd6 {[%clk 0:22:34]}  Qb3 {[%clk 0:31:25]}
31. Qe4 {[%clk 0:18:39]}  Qc4 {[%clk 0:29:20]} 1/2-1/2

[Event "Irish Championship 2026"]
[Site "Talbot Hotel Stillorgan, Co.Dublin, IE"]
[Date "2026.08.03"]
[Round "3"]
[White "Campbell, Andrew"]
[Black "Andhurthi, Sreeyan"]
[Result "1/2-1/2"]
[Board "84"]
[TimeControl "40/5400+30:1800+30"]
[WhiteFideId "2518392"]
[BlackFideId "2523531"]
[WhiteElo "1951"]
[BlackElo "1950"]
[WhiteClock "0:29:09"]
[BlackClock "0:38:29"]
[Variant "Standard"]
[EndDate "2026.08.03"]
[EndTime "17:47:40"]

1. d4 {[%clk 1:30:57]}  Nf6 {[%clk 1:30:55]} 2. Nc3 {[%clk 1:31:24]}  d5 {[%clk 1:31:19]} 3. Bf4 {[%clk 1:31:49]}  a6 {[%clk 1:31:44]}
4. a3 {[%clk 1:31:42]}  Bf5 {[%clk 1:32:00]} 5. e3 {[%clk 1:31:53]}  e6 {[%clk 1:32:16]} 6. Nf3 {[%clk 1:31:51]}  Nbd7 {[%clk 1:32:31]}
7. Bd3 {[%clk 1:31:20]}  Bg6 {[%clk 1:32:08]} 8. b4 {[%clk 1:13:32]}  Be7 {[%clk 1:14:39]} 9. O-O {[%clk 1:11:11]}  O-O {[%clk 1:14:36]}
10. Qe2 {[%clk 1:10:23]}  Re8 {[%clk 0:55:02]} 11. Na4 {[%clk 1:08:52]}  Bxd3 {[%clk 0:48:57]} 12. cxd3 {[%clk 1:08:33]}  Nh5 {[%clk 0:48:58]}
13. Bg3 {[%clk 1:08:26]}  Nxg3 {[%clk 0:48:51]} 14. hxg3 {[%clk 1:08:49]}  Bd6 {[%clk 0:48:02]} 15. Nc5 {[%clk 1:00:43]}  b6 {[%clk 0:46:42]}
16. Nb7 {[%clk 1:01:02]}  Qe7 {[%clk 0:44:28]} 17. Rfc1 {[%clk 1:00:03]}  Rab8 {[%clk 0:43:20]} 18. Nxd6 {[%clk 1:00:19]}  Qxd6 {[%clk 0:38:04]}
19. Qc2 {[%clk 0:59:34]}  Rbc8 {[%clk 0:34:30]} 20. Qc6 {[%clk 0:54:55]}  Qxc6 {[%clk 0:34:26]} 21. Rxc6 {[%clk 0:55:17]}  Nb8 {[%clk 0:34:50]}
22. Rc3 {[%clk 0:54:57]}  Kf8 {[%clk 0:31:43]} 23. Rac1 {[%clk 0:54:09]}  Re7 {[%clk 0:30:53]} 24. a4 {[%clk 0:51:42]}  f6 {[%clk 0:29:31]}
25. a5 {[%clk 0:51:15]}  b5 {[%clk 0:29:23]} 26. Nd2 {[%clk 0:50:41]}  c6 {[%clk 0:26:52]} 27. e4 {[%clk 0:41:40]}  Rec7 {[%clk 0:24:23]}
28. Nb3 {[%clk 0:30:50]}  Nd7 {[%clk 0:24:37]} 29. R3c2 {[%clk 0:30:08]}  Kf7 {[%clk 0:23:56]} 30. Re1 {[%clk 0:29:49]}  Re8 {[%clk 0:24:02]}
31. Rce2 {[%clk 0:29:49]}  Rcc8 {[%clk 0:24:20]} 32. f4 {[%clk 0:29:36]}  h6 {[%clk 0:20:12]} 33. Rc1 {[%clk 0:28:27]}  Rc7 {[%clk 0:18:45]}
34. Kf2 {[%clk 0:26:57]}  f5 {[%clk 0:16:14]} 35. exf5 {[%clk 0:19:11]}  exf5 {[%clk 0:15:44]} 36. Rxe8 {[%clk 0:17:54]}  Kxe8 {[%clk 0:16:07]}
37. Nd2 {[%clk 0:18:20]}  Kf7 {[%clk 0:15:32]} 38. Nf3 {[%clk 0:18:40]}  Rc8 {[%clk 0:15:47]} 39. Ne5+ {[%clk 0:17:16]}  Nxe5 {[%clk 0:15:58]}
40. dxe5 {[%clk 0:16:42]}  d4 {[%clk 0:15:27]} 41. Kf3 {[%clk 0:08:01]}  h5 {[%clk 0:15:26]} 42. Kf2 {[%clk 0:07:03]}  g6 {[%clk 0:15:32]}
43. Kg1 {[%clk 0:07:11]}  Ke7 {[%clk 0:07:42]} 44. Rc5 {[%clk 0:06:57]}  Kd7 {[%clk 0:07:35]} 45. Kh2 {[%clk 0:05:32]}  Re8 {[%clk 0:07:57]}
46. Kh3 {[%clk 0:05:19]}  Re6 {[%clk 0:08:17]} 47. Kh4 {[%clk 0:05:36]}  Ke7 {[%clk 0:08:41]} 48. Kg5 {[%clk 0:05:43]}  Kf7 {[%clk 0:09:05]}
49. Rc1 {[%clk 0:05:52]}  Kg7 {[%clk 0:09:09]} 50. Rc5 {[%clk 0:05:07]}  Kh7 {[%clk 0:09:30]} 51. Rc1 {[%clk 0:01:21]}  Kg7 {[%clk 0:09:53]}
52. Rh1 {[%clk 0:29:35]}  Re8 {[%clk 0:38:29]} 53. Rc1 {[%clk 0:29:09]} 1/2-1/2

[Event "Irish Championship 2026"]
[Site "Talbot Hotel Stillorgan, Co.Dublin, IE"]
[Date "2026.08.03"]
[Round "3"]
[White "Doolin, Nemhain"]
[Black "Singhal, Vivaan"]
[Result "0-1"]
[Board "86"]
[TimeControl "40/5400+30:1800+30"]
[WhiteFideId "2517230"]
[BlackFideId "2516721"]
[WhiteElo "1915"]
[BlackElo "1878"]
[WhiteClock "0:04:43"]
[BlackClock "0:06:56"]
[Variant "Standard"]
[EndDate "2026.08.03"]
[EndTime "17:24:39"]

1. e4 {[%clk 1:30:57]}  c6 {[%clk 1:30:25]} 2. d4 {[%clk 1:31:22]}  d5 {[%clk 1:30:45]} 3. e5 {[%clk 1:31:48]}  c5 {[%clk 1:31:11]}
4. dxc5 {[%clk 1:32:04]}  e6 {[%clk 1:31:32]} 5. a3 {[%clk 1:32:17]}  Bxc5 {[%clk 1:31:54]} 6. b4 {[%clk 1:32:15]}  Be7 {[%clk 1:32:01]}
7. Qg4 {[%clk 1:32:04]}  g6 {[%clk 1:32:13]} 8. Nf3 {[%clk 1:32:01]}  a5 {[%clk 1:30:45]} 9. b5 {[%clk 1:32:08]}  Nd7 {[%clk 1:28:39]}
10. Bd3 {[%clk 1:30:34]}  h5 {[%clk 1:26:25]} 11. Qf4 {[%clk 1:30:00]}  Nh6 {[%clk 1:25:43]} 12. O-O {[%clk 1:27:48]}  Nf5 {[%clk 1:23:22]}
13. a4 {[%clk 1:19:26]}  b6 {[%clk 1:20:37]} 14. Nc3 {[%clk 1:16:23]}  Bb7 {[%clk 1:18:30]} 15. Ne2 {[%clk 1:13:12]}  Nc5 {[%clk 1:10:25]}
16. Rd1 {[%clk 1:05:26]}  Qc7 {[%clk 1:05:16]} 17. Bb2 {[%clk 1:02:31]}  O-O-O {[%clk 0:50:22]} 18. Ned4 {[%clk 0:55:00]}  g5 {[%clk 0:41:26]}
19. Nxg5 {[%clk 0:52:34]}  Bxg5 {[%clk 0:37:36]} 20. Qxg5 {[%clk 0:50:33]}  Rdg8 {[%clk 0:34:58]} 21. Qd2 {[%clk 0:42:45]}  Nh4 {[%clk 0:31:21]}
22. g3 {[%clk 0:27:52]}  Qxe5 {[%clk 0:26:15]} 23. Qe2 {[%clk 0:22:48]}  Qg5 {[%clk 0:18:58]} 24. Nf3 {[%clk 0:17:05]}  Nxf3+ {[%clk 0:17:56]}
25. Qxf3 {[%clk 0:16:05]}  d4 {[%clk 0:17:10]} 26. Qe2 {[%clk 0:14:23]}  Qd5 {[%clk 0:14:34]} 27. f3 {[%clk 0:12:22]}  h4 {[%clk 0:10:40]}
28. Kg2 {[%clk 0:11:35]}  hxg3 {[%clk 0:09:10]} 29. h3 {[%clk 0:09:59]}  Rxh3 {[%clk 0:08:20]} 30. Rh1 {[%clk 0:08:22]}  Rh2+ {[%clk 0:07:38]}
31. Kg1 {[%clk 0:04:20]}  Rxe2 {[%clk 0:07:13]} 32. Bxe2 {[%clk 0:04:43]}  Qe5 {[%clk 0:06:56]} 0-1

[Event "Irish Championship 2026"]
[Site "Talbot Hotel Stillorgan, Co.Dublin, IE"]
[Date "2026.08.03"]
[Round "3"]
[White "Fitzgerald, Martin"]
[Black "OBrien, James Joseph"]
[Result "0-1"]
[Board "87"]
[TimeControl "40/5400+30:1800+30"]
[WhiteFideId "2511177"]
[BlackFideId "2518813"]
[WhiteElo "1891"]
[BlackElo "1914"]
[WhiteClock "0:00:35"]
[BlackClock "0:32:53"]
[Variant "Standard"]
[EndDate "2026.08.03"]
[EndTime "16:52:54"]

1. e4 {[%clk 1:30:59]}  e6 {[%clk 1:30:55]} 2. d4 {[%clk 1:31:26]}  d5 {[%clk 1:31:23]} 3. Nd2 {[%clk 1:31:51]}  Nc6 {[%clk 1:31:49]}
4. Ngf3 {[%clk 1:29:13]}  Nf6 {[%clk 1:32:10]} 5. e5 {[%clk 1:28:59]}  Nd7 {[%clk 1:32:28]} 6. c3 {[%clk 1:27:09]}  f6 {[%clk 1:32:50]}
7. exf6 {[%clk 1:25:43]}  Qxf6 {[%clk 1:33:13]} 8. Be2 {[%clk 1:06:08]}  Bd6 {[%clk 1:33:29]} 9. Nf1 {[%clk 1:01:17]}  O-O {[%clk 1:32:35]}
10. Ng3 {[%clk 0:57:56]}  h6 {[%clk 1:23:26]} 11. Be3 {[%clk 0:56:21]}  Qf7 {[%clk 1:18:32]} 12. Qd2 {[%clk 0:47:59]}  e5 {[%clk 0:56:53]}
13. O-O-O {[%clk 0:34:29]}  Nb6 {[%clk 0:52:12]} 14. dxe5 {[%clk 0:25:45]}  Nxe5 {[%clk 0:51:50]} 15. Nxe5 {[%clk 0:25:52]}  Bxe5 {[%clk 0:52:16]}
16. Bh5 {[%clk 0:20:05]}  Qf6 {[%clk 0:45:54]} 17. Rhe1 {[%clk 0:11:34]}  c6 {[%clk 0:42:25]} 18. f4 {[%clk 0:08:12]}  Bd6 {[%clk 0:36:11]}
19. Ne2 {[%clk 0:04:17]}  Nc4 {[%clk 0:34:38]} 20. Bd4 {[%clk 0:03:51]}  Qh4 {[%clk 0:32:49]} 21. Qd3 {[%clk 0:00:42]}  Qxh5 {[%clk 0:32:14]}
22. b3 {[%clk 0:00:49]}  Ba3+ {[%clk 0:32:28]} 23. Kb1 {[%clk 0:00:35]}  Bf5 {[%clk 0:32:53]} 0-1

[Event "Irish Championship 2026"]
[Site "Talbot Hotel Stillorgan, Co.Dublin, IE"]
[Date "2026.08.04"]
[Round "4"]
[White "Jacob Flynn"]
[Black "Tureshbayev, Anuar"]
[Result "1/2-1/2"]
[Board "61"]
[TimeControl "40/5400+30:1800+30"]
[BlackFideId "651081709"]
[WhiteElo "2289"]
[BlackElo "2250"]
[BlackTitle "FM"]
[WhiteClock "0:21:43"]
[BlackClock "0:19:01"]
[Variant "Standard"]
[EndDate "2026.08.04"]
[EndTime "18:06:52"]

1. e4 {[%clk 1:30:48]}  c6 {[%clk 1:30:58]} 2. d4 {[%clk 1:29:57]}  d5 {[%clk 1:31:24]} 3. exd5 {[%clk 1:27:49]}  cxd5 {[%clk 1:31:50]}
4. Nf3 {[%clk 1:28:03]}  Nc6 {[%clk 1:30:20]} 5. c3 {[%clk 1:27:47]}  e6 {[%clk 1:30:11]} 6. Bd3 {[%clk 1:27:10]}  Bd6 {[%clk 1:30:31]}
7. O-O {[%clk 1:26:54]}  Nge7 {[%clk 1:30:58]} 8. Re1 {[%clk 1:26:45]}  O-O {[%clk 1:31:02]} 9. b4 {[%clk 1:14:31]}  f6 {[%clk 1:19:49]}
10. Qc2 {[%clk 1:03:00]}  h6 {[%clk 1:19:14]} 11. b5 {[%clk 0:58:00]}  Na5 {[%clk 1:18:34]} 12. Nbd2 {[%clk 0:58:13]}  Bd7 {[%clk 1:14:26]}
13. a4 {[%clk 0:52:04]}  Rc8 {[%clk 1:07:46]} 14. Ba3 {[%clk 0:52:21]}  Bxa3 {[%clk 1:03:55]} 15. Rxa3 {[%clk 0:52:49]}  Qc7 {[%clk 1:04:02]}
16. g3 {[%clk 0:43:27]}  Qd6 {[%clk 1:02:43]} 17. Qb2 {[%clk 0:39:09]}  Rc7 {[%clk 0:53:42]} 18. Qb4 {[%clk 0:27:38]}  Nc4 {[%clk 0:51:45]}
19. Nxc4 {[%clk 0:26:30]}  Qxb4 {[%clk 0:51:58]} 20. cxb4 {[%clk 0:26:58]}  dxc4 {[%clk 0:52:23]} 21. Rc3 {[%clk 0:27:16]}  Rfc8 {[%clk 0:51:56]}
22. Rec1 {[%clk 0:27:44]}  Nd5 {[%clk 0:51:58]} 23. Rxc4 {[%clk 0:28:06]}  Rxc4 {[%clk 0:52:24]} 24. Rxc4 {[%clk 0:28:24]}  Rxc4 {[%clk 0:52:50]}
25. Bxc4 {[%clk 0:28:49]}  Nxb4 {[%clk 0:53:12]} 26. Kf1 {[%clk 0:27:16]}  Kf7 {[%clk 0:50:24]} 27. Ke2 {[%clk 0:26:35]}  Ke7 {[%clk 0:50:47]}
28. Nd2 {[%clk 0:25:37]}  b6 {[%clk 0:29:02]} 29. f4 {[%clk 0:22:22]}  Be8 {[%clk 0:27:56]} 30. Nf1 {[%clk 0:15:40]}  Kd6 {[%clk 0:22:36]}
31. Ne3 {[%clk 0:15:16]}  Bg6 {[%clk 0:20:25]} 32. Kd2 {[%clk 0:15:23]}  Be4 {[%clk 0:19:03]} 33. Bb3 {[%clk 0:13:38]}  Nd5 {[%clk 0:13:43]}
34. Nc4+ {[%clk 0:12:10]}  Kd7 {[%clk 0:13:33]} 35. Bd1 {[%clk 0:09:33]}  Ne7 {[%clk 0:12:52]} 36. Kc3 {[%clk 0:06:19]}  Bd5 {[%clk 0:11:56]}
37. Ne3 {[%clk 0:06:23]}  Kd6 {[%clk 0:12:16]} 38. Kd3 {[%clk 0:05:28]}  e5 {[%clk 0:10:48]} 39. fxe5+ {[%clk 0:05:27]}  fxe5 {[%clk 0:11:11]}
40. Kc3 {[%clk 0:01:40]}  Be6 {[%clk 0:09:38]} 41. Kd3 {[%clk 0:26:32]}  Ba2 {[%clk 0:28:59]} 42. Ke4 {[%clk 0:21:02]}  Bb1+ {[%clk 0:27:55]}
43. Bc2 {[%clk 0:20:54]}  exd4 {[%clk 0:26:31]} 44. Kxd4 {[%clk 0:21:14]}  Bxc2 {[%clk 0:26:33]} 45. Nxc2 {[%clk 0:21:43]}  Nd5 {[%clk 0:19:01]}
46. Ke4 {[%clk 0:21:13]} 1/2-1/2